bitfinex/quotes_SOLUSD_20240909
["timestamp","ask_amount","ask_price","bid_price","bid_amount"]
[1725889667122,45.0,129.33,129.28,16.3781]
[1725889667437,52.7326,129.33,129.28,16.3781]
[1725889668045,45.0,129.33,129.28,16.3781]
[1725889668202,52.7322,129.33,129.28,16.3781]
[1725889668397,52.7322,129.33,129.27,6.3395]
[1725889668398,57.7334,129.31,129.27,6.3395]
[1725889668633,7.7328,129.32,129.27,6.3395]
[1725889668914,45.0,129.31,129.27,6.3395]
[1725889669103,45.0,129.33,129.27,6.3395]
[1725889669301,20.0,129.32,129.27,6.3395]
[1725889669508,50.0,129.36,129.27,6.3395]
[1725889669713,50.0,129.34,129.27,6.3395]
[1725889669918,20.0,129.33,129.27,6.3395]
[1725889670218,7.731,129.35,129.27,6.3395]
[1725889670412,95.0,129.34,129.27,6.3395]
[1725889671026,50.0,129.32,129.27,6.3395]
[1725889671251,45.0,129.31,129.27,6.3395]
[1725889671739,57.7319,129.34,129.27,6.3395]
[1725889671933,50.0,129.32,129.27,6.3395]
[1725889672126,45.0,129.31,129.27,6.3395]
[1725889672714,45.0,129.32,129.27,6.3395]
[1725889673304,57.7317,129.34,129.27,6.3395]
[1725889673305,45.0,129.33,129.27,6.3395]
[1725889673909,57.7307,129.36,129.27,6.3395]
[1725889674334,57.7305,129.36,129.27,6.3395]
[1725889674614,7.7305,129.36,129.27,6.3395]
[1725889675024,3.1,129.39,129.28,16.15137181]
[1725889675214,57.7293,129.38,129.28,15.162]
[1725889675830,50.0,129.34,129.28,15.162]
[1725889676047,57.7317,129.34,129.28,15.162]
[1725889676203,50.0,129.34,129.28,15.162]
[1725889676412,57.7319,129.34,129.28,15.162]
[1725889676614,50.0,129.34,129.28,15.162]
[1725889676831,20.0,129.33,129.28,15.162]
[1725889677133,72.7326,129.33,129.28,15.162]
[1725889677553,65.0,129.33,129.28,15.162]
[1725889677845,50.0,129.36,129.28,15.162]
[1725889678050,20.0,129.35,129.28,15.162]
[1725889678731,20.0,129.35,129.28,16.70871761]
[1725889678907,20.0,129.35,129.28,15.162]
[1725889679324,45.0,129.34,129.28,15.162]
[1725889680148,20.0,129.35,129.28,15.162]
[1725889680347,50.0,129.38,129.28,15.162]
[1725889680591,56.405,129.4,129.28,15.162]
[1725889680889,57.7281,129.4,129.29,20.0]
[1725889681177,57.7269,129.42,129.31,22.0637]
[1725889681485,50.0,129.42,129.32,20.0]
[1725889681676,57.7269,129.42,129.32,20.0]
[1725889681972,7.7262,129.43,129.33,1.54608304]
[1725889682270,50.0,129.44,129.32,20.0]
[1725889682456,50.0,129.44,129.35,6.4386]
[1725889683042,7.7274,129.41,129.35,6.4386]
[1725889683257,50.0,129.42,129.35,6.4386]
[1725889683825,45.0,129.41,129.35,6.4386]
[1725889684026,95.0,129.42,129.35,6.4386]
[1725889684231,102.7268,129.42,129.35,6.4386]
[1725889684733,95.0,129.42,129.35,6.4386]
[1725889685164,50.0,129.4,129.35,6.4386]
[1725889685330,45.0,129.39,129.35,6.4386]
[1725889685939,50.0,129.37,129.34,15.0846]
[1725889686154,45.0,129.36,129.31,21.3368]
[1725889686477,52.7304,129.36,129.31,21.3368]
[1725889686745,50.0,129.35,129.31,21.3368]
[1725889686960,50.0,129.35,129.3,10.0]
[1725889686961,7.7324,129.33,129.3,10.0]
[1725889687168,45.0,129.32,129.3,10.0]
[1725889687368,45.0,129.34,129.3,10.0]
[1725889688377,45.0,129.35,129.3,10.0]
[1725889688681,50.0,129.34,129.3,10.0]
[1725889688840,45.0,129.33,129.3,10.0]
[1725889689257,45.0,129.34,129.3,10.0]
[1725889689744,45.0,129.35,129.3,10.0]
[1725889690654,57.7319,129.34,129.3,10.0]
[1725889690841,45.0,129.33,129.3,10.0]
[1725889691249,95.0,129.34,129.3,10.0]
[1725889691641,102.732,129.34,129.3,10.0]
[1725889691839,95.0,129.34,129.3,10.0]
[1725889692771,45.0,129.34,129.3,10.0]
[1725889692939,102.7316,129.34,129.3,10.0]
[1725889693601,50.0,129.32,129.3,10.0]
[1725889693774,20.0,129.33,129.25,16.0192]
[1725889693775,7.7351,129.29,129.25,16.0192]
[1725889693968,57.734,129.3,129.25,16.0192]
[1725889694267,45.0,129.29,129.25,16.0192]
[1725889696276,45.0,129.3,129.25,16.0192]
[1725889696763,45.0,129.31,129.25,16.0192]
[1725889697095,7.7322,129.33,129.25,16.0192]
[1725889697268,50.0,129.34,129.25,16.0192]
[1725889697471,7.731,129.35,129.25,16.0192]
[1725889697663,57.7304,129.36,129.25,16.0192]
[1725889697990,57.7305,129.36,129.25,16.0192]
[1725889698283,7.7311,129.35,129.25,16.0192]
[1725889698487,7.7312,129.35,129.25,16.0192]
[1725889699065,265.3654,129.39,129.25,16.0192]
[1725889699066,7.7325,129.33,129.25,16.0192]
[1725889699252,7.7317,129.34,129.26,1.54706295]
[1725889699459,50.0,129.36,129.27,1.54690134]
[1725889699771,7.7299,129.37,129.25,16.0192]
[1725889699994,50.0,129.36,129.26,20.0]
[1725889700352,7.7299,129.37,129.26,20.0]
[1725889700567,50.0,129.36,129.26,20.0]
[1725889701188,50.0,129.34,129.25,16.0192]
[1725889701393,45.0,129.33,129.25,16.0192]
[1725889701563,45.0,129.33,129.26,20.0]
[1725889701753,45.0,129.33,129.27,1.54694041]
[1725889702053,50.0,129.37,129.26,63.23177271]
[1725889702281,7.728,129.4,129.28,43.23177271]
[1725889702485,50.0,129.39,129.29,1.54630188]
[1725889702684,50.0,129.39,129.29,20.0]
[1725889702873,50.0,129.41,129.31,6.588]
[1725889703097,50.0,129.41,129.32,21.54615441]
[1725889703399,57.7274,129.41,129.32,20.0]
[1725889703596,7.7274,129.41,129.32,20.0]
[1725889703767,57.7274,129.41,129.32,20.0]
[1725889704076,7.7281,129.4,129.32,20.0]
[1725889704309,7.7281,129.4,129.32,21.34141176]
[1725889704509,78.24299496,129.43,129.32,20.0]
[1725889704704,20.0,129.42,129.33,1.34253411]
[1725889704896,78.24299496,129.43,129.33,1.34253411]
[1725889705078,78.24299496,129.43,129.32,20.0]
[1725889705079,20.51639496,129.43,129.32,20.0]
[1725889705285,20.51639496,129.43,129.35,6.0243]
[1725889705490,20.51639496,129.43,129.36,1.54569771]
[1725889705694,57.725,129.45,129.35,6.0243]
[1725889706209,7.7268,129.42,129.35,6.0243]
[1725889706383,50.0,129.45,129.35,6.0243]
[1725889706580,57.7251,129.45,129.35,6.0243]
[1725889706961,50.0,129.45,129.35,6.0243]
[1725889707962,57.7238,129.47,129.35,6.0243]
[1725889708268,57.7238,129.47,129.36,20.0]
[1725889708563,7.7244,129.46,129.36,20.0]
[1725889709082,57.7251,129.45,129.36,20.0]
[1725889709267,7.7256,129.44,129.36,20.0]
[1725889709465,7.7256,129.44,129.35,6.0243]
[1725889709873,45.0,129.43,129.35,6.0243]
[1725889710273,45.0,129.44,129.35,6.0243]
[1725889710673,52.726,129.44,129.35,6.0243]
[1725889710904,52.7257,129.44,129.35,6.0243]
[1725889711380,50.0,129.43,129.35,6.0243]
[1725889711560,45.0,129.42,129.35,6.0243]
[1725889711863,50.0,129.46,129.35,6.0243]
[1725889712071,20.0,129.45,129.35,6.0243]
[1725889712263,27.725,129.45,129.35,6.0243]
[1725889712592,57.7245,129.46,129.36,20.0]
[1725889713124,7.7251,129.45,129.36,20.0]
[1725889713266,95.0,129.44,129.36,20.0]
[1725889713588,102.726,129.44,129.35,6.0243]
[1725889713765,50.0,129.42,129.35,6.0243]
[1725889713975,50.0,129.4,129.35,6.0243]
[1725889714188,45.0,129.39,129.35,6.0243]
[1725889714805,50.0,129.38,129.34,15.5719]
[1725889715036,7.7298,129.37,129.34,15.5719]
[1725889715191,95.0,129.36,129.3,16.2045]
[1725889715394,45.0,129.35,129.3,16.2045]
[1725889715687,52.731,129.35,129.3,16.2045]
[1725889715887,57.7316,129.34,129.3,16.2045]
[1725889716089,45.0,129.33,129.29,6.2395]
[1725889716570,45.0,129.33,129.27,16.2045]
[1725889716769,50.0,129.32,129.27,16.2045]
[1725889716990,45.0,129.31,129.27,16.2045]
[1725889717608,50.0,129.34,129.27,16.2045]
[1725889718410,45.0,129.33,129.27,16.2045]
[1725889718622,50.0,129.38,129.27,16.2045]
[1725889718921,7.7286,129.39,129.28,20.63779998]
[1725889719225,53.1,129.4,129.28,20.0]
[1725889719443,57.728,129.4,129.29,51.4466]
[1725889720548,57.7273,129.42,129.3,15.8917]
[1725889721023,57.7273,129.42,129.31,20.0]
[1725889722202,287.3319,129.45,129.31,20.0]
[1725889722203,50.0,129.4,129.31,20.0]
[1725889722747,45.0,129.39,129.31,20.0]
[1725889723515,50.0,129.38,129.3,15.8917]
[1725889723710,45.0,129.37,129.3,17.42003414]
[1725889724109,45.0,129.37,129.3,17.42099692]
[1725889724417,45.0,129.38,129.3,17.42099692]
[1725889724610,45.0,129.39,129.3,15.8917]
[1725889724793,45.0,129.4,129.31,20.0]
[1725889726711,45.0,129.4,129.32,1.54520442]
[1725889726917,50.0,129.42,129.34,6.3842]
[1725889727135,57.7267,129.42,129.34,6.3842]
[1725889727885,7.7273,129.41,129.34,6.3842]
[1725889728098,50.0,129.4,129.34,6.3842]
[1725889728314,45.0,129.39,129.34,6.3842]
[1725889728606,57.7269,129.42,129.34,6.3842]
[1725889728816,45.0,129.41,129.34,6.3842]
[1725889729393,95.0,129.41,129.34,6.3842]
[1725889729893,45.0,129.41,129.34,6.3842]
[1725889730103,95.0,129.41,129.34,6.3842]
[1725889730699,45.0,129.41,129.34,6.3842]
[1725889731192,95.0,129.41,129.34,6.3842]
[1725889731398,102.7276,129.41,129.34,6.3842]
[1725889731618,50.0,129.39,129.34,6.3842]
[1725889731940,7.7298,129.37,129.31,6.3772]
[1725889732115,52.7304,129.36,129.31,6.3772]
[1725889733124,45.0,129.36,129.31,6.3772]
[1725889734039,45.0,129.36,129.31,7.92342641]
[1725889734254,7.728,129.4,129.31,6.3772]
[1725889735427,50.0,129.41,129.31,6.3772]
[1725889735667,50.0,129.43,129.31,6.3772]
[1725889735813,50.0,129.41,129.32,20.0]
[1725889736135,7.7277,129.41,129.32,20.0]
[1725889736608,57.7277,129.41,129.32,20.0]
[1725889736806,45.0,129.4,129.32,20.0]
[1725889737009,45.0,129.4,129.31,6.3772]
[1725889737257,7.7286,129.39,129.31,6.3772]
[1725889737549,45.0,129.38,129.31,6.3772]
[1725889737733,52.7285,129.4,129.31,6.3772]
[1725889738207,45.0,129.4,129.31,6.3772]
[1725889738533,50.0,129.4,129.31,6.3772]
[1725889738711,45.0,129.39,129.31,6.3772]
[1725889739477,50.0,129.38,129.31,6.3772]
[1725889739770,50.0,129.36,129.31,6.3772]
[1725889739922,45.0,129.35,129.31,6.3772]
[1725889740569,50.0,129.34,129.27,21.3945]
[1725889740784,57.7317,129.34,129.27,21.3945]
[1725889740976,45.0,129.33,129.27,21.3945]
[1725889741158,45.0,129.33,129.28,1.54061056]
[1725889741356,45.0,129.35,129.29,1.54162807]
[1725889741560,45.0,129.35,129.27,21.3945]
[1725889741759,52.7311,129.35,129.27,21.3945]
[1725889742073,50.0,129.34,129.27,21.3945]
[1725889742359,45.0,129.33,129.27,21.3945]
[1725889743337,45.0,129.34,129.27,21.3945]
[1725889743646,50.0,129.33,129.27,21.3945]
[1725889743837,50.0,129.31,129.27,21.3945]
[1725889744043,45.0,129.3,129.27,21.3945]
[1725889744259,45.0,129.3,129.27,15.1038]
[1725889744455,45.0,129.3,129.24,21.6228]
[1725889744783,45.0,129.3,129.2,6.3782]
[1725889744784,50.0,129.25,129.2,6.3782]
[1725889744954,50.0,129.25,129.18,15.2446]
[1725889744955,7.7378,129.24,129.18,15.2446]
[1725889745159,45.0,129.23,129.18,15.2446]
[1725889745581,45.0,129.24,129.18,15.2446]
[1725889746656,45.0,129.25,129.18,15.2446]
[1725889746984,95.0,129.25,129.18,15.2446]
[1725889747161,45.0,129.25,129.18,15.2446]
[1725889748066,45.0,129.25,129.18,16.54688392]
[1725889748490,57.7352,129.28,129.18,16.54688392]
[1725889748666,45.0,129.27,129.18,15.2446]
[1725889748862,45.0,129.27,129.19,20.0]
[1725889749270,50.0,129.26,129.19,20.0]
[1725889750470,50.0,129.26,129.18,15.2446]
[1725889750648,45.0,129.25,129.18,15.2446]
[1725889752372,50.0,129.24,129.18,15.2446]
[1725889752578,45.0,129.23,129.18,15.2446]
[1725889754494,50.0,129.22,129.16,6.4404]
[1725889754691,50.0,129.2,129.16,6.4404]
[1725889754890,45.0,129.19,129.16,6.4404]
[1725889755199,7.7389,129.22,129.16,6.4404]
[1725889755451,95.0,129.21,129.16,6.4404]
[1725889756705,102.7395,129.21,129.15,15.001]
[1725889757898,50.0,129.19,129.15,15.001]
[1725889758098,45.0,129.18,129.13,6.4704]
[1725889759442,25.15280141,129.24,129.18,16.343]
[1725889759443,22.05280141,129.24,129.18,16.343]
[1725889759608,50.0,129.26,129.19,7.45548524]
[1725889759805,64.2266,129.29,129.19,7.45548524]
[1725889760104,50.0,129.25,129.19,6.2913]
[1725889760491,57.7374,129.25,129.19,6.2913]
[1725889760904,50.0,129.25,129.19,6.2913]
[1725889761110,45.0,129.24,129.19,6.2913]
[1725889762426,45.0,129.25,129.2,1.54787688]
[1725889762640,50.0,129.28,129.19,6.2913]
[1725889762941,57.7353,129.28,129.19,6.2913]
[1725889763147,50.0,129.26,129.19,6.2913]
[1725889763734,50.0,129.24,129.19,6.2913]
[1725889763926,45.0,129.23,129.18,16.343]
[1725889764811,50.0,129.28,129.19,1.54803044]
[1725889764999,50.0,129.28,129.2,1.54781701]
[1725889765419,50.0,129.28,129.19,20.0]
[1725889766346,20.86357916,129.29,129.21,6.501]
[1725889766643,50.0,129.32,129.23,16.1422]
[1725889766952,50.0,129.3,129.24,20.0]
[1725889767128,50.0,129.3,129.23,16.1422]
[1725889767345,57.7339,129.3,129.23,16.1422]
[1725889767535,50.0,129.3,129.23,16.1422]
[1725889768227,45.0,129.29,129.23,16.1422]
[1725889768630,50.0,129.28,129.23,16.1422]
[1725889768839,50.0,129.26,129.21,6.501]
[1725889769057,57.7365,129.26,129.2,15.1885]
[1725889769237,45.0,129.25,129.2,15.1885]
[1725889769767,45.0,129.26,129.2,15.1885]
[1725889769937,50.0,129.3,129.2,15.1885]
[1725889770112,50.0,129.3,129.21,21.54751731]
[1725889770311,50.0,129.3,129.21,20.0]
[1725889770911,57.7341,129.3,129.21,20.0]
[1725889771117,57.7341,129.3,129.21,21.54739144]
[1725889771318,57.7341,129.3,129.21,20.0]
[1725889771516,45.0,129.29,129.21,20.0]
[1725889771822,45.0,129.29,129.2,15.1885]
[1725889772020,45.0,129.29,129.21,20.0]
[1725889772340,50.0,129.28,129.21,20.0]
[1725889772539,45.0,129.29,129.21,20.0]
[1725889772540,45.0,129.27,129.21,21.54480242]
[1725889772740,45.0,129.29,129.21,21.54480242]
[1725889772926,50.0,129.31,129.21,20.0]
[1725889773257,57.7334,129.31,129.21,20.0]
[1725889773436,50.0,129.29,129.21,20.0]
[1725889773636,57.7345,129.29,129.21,20.0]
[1725889774028,50.0,129.29,129.21,20.0]
[1725889774442,45.0,129.28,129.21,20.0]
[1725889774957,57.7359,129.27,129.2,15.1885]
[1725889775130,50.0,129.25,129.2,15.1885]
[1725889775346,57.7374,129.25,129.2,15.1885]
[1725889775523,45.0,129.24,129.2,15.1885]
[1725889776542,45.0,129.25,129.2,15.1885]
[1725889777586,50.0,129.29,129.2,15.1885]
[1725889777928,50.0,129.27,129.2,15.1885]
[1725889778332,57.7347,129.29,129.21,1.17179098]
[1725889778564,50.0,129.29,129.21,1.22570482]
[1725889778849,50.0,129.27,129.21,20.0]
[1725889779463,50.0,129.29,129.22,1.17750126]
[1725889779685,50.0,129.31,129.24,15.5887]
[1725889780042,57.7322,129.33,129.24,15.5887]
[1725889780236,57.7322,129.33,129.25,1.54723652]
[1725889780496,57.7313,129.35,129.25,1.54723652]
[1725889780657,50.0,129.33,129.25,21.54723652]
[1725889780863,7.7313,129.35,129.25,21.54723652]
[1725889781078,50.0,129.34,129.25,20.0]
[1725889781361,57.7317,129.34,129.25,20.0]
[1725889782570,43.41497075,129.37,129.24,15.5887]
[1725889782571,50.0,129.32,129.24,15.5887]
[1725889782769,57.7329,129.32,129.24,15.5887]
[1725889783060,50.0,129.32,129.24,15.5887]
[1725889783238,45.0,129.31,129.24,15.5887]
[1725889783733,50.0,129.3,129.24,15.5887]
[1725889783964,45.0,129.29,129.24,15.5887]
[1725889785546,7.7329,129.32,129.24,15.5887]
[1725889785547,50.0,129.32,129.24,15.5887]
[1725889785757,45.0,129.31,129.24,15.5887]
[1725889787485,50.0,129.3,129.24,15.5887]
[1725889787675,52.7335,129.31,129.24,15.5887]
[1725889787676,45.0,129.31,129.24,15.5887]
[1725889789037,50.0,129.3,129.24,15.5887]
[1725889789352,45.0,129.29,129.24,15.5887]
[1725889789558,50.0,129.28,129.24,15.5887]
[1725889789788,45.0,129.27,129.24,15.5887]
[1725889790460,52.7358,129.27,129.22,6.2616]
[1725889790970,45.0,129.27,129.22,6.2616]
[1725889792962,95.0,129.27,129.22,6.2616]
[1725889793172,102.7357,129.27,129.22,6.2616]
[1725889793396,50.0,129.23,129.19,6.062]
[1725889793569,50.0,129.25,129.19,6.062]
[1725889793756,45.0,129.24,129.19,6.062]
[1725889794771,50.0,129.22,129.18,15.9564]
[1725889795064,45.0,129.21,129.18,15.9564]
[1725889795471,50.0,129.25,129.18,15.9564]
[1725889795774,50.0,129.22,129.18,15.9564]
[1725889795969,45.0,129.21,129.18,15.9564]
[1725889796854,45.0,129.21,129.17,0.8503631]
[1725889797687,57.7402,129.2,129.17,0.8503631]
[1725889798072,45.0,129.19,129.17,0.8503631]
[1725889798260,45.0,129.21,129.17,0.8503631]
[1725889798666,50.0,129.2,129.17,0.8503631]
[1725889798859,45.0,129.21,129.17,0.8503631]
[1725889799268,50.0,129.2,129.17,0.8503631]
[1725889799450,45.0,129.19,129.17,0.8503631]
[1725889799874,45.0,129.2,129.17,0.8503631]
[1725889801987,56.451,129.25,129.17,0.8503631]
[1725889802283,21.82534319,129.26,129.17,0.8503631]
[1725889802284,50.0,129.23,129.17,0.8503631]
[1725889802654,50.0,129.21,129.17,0.8503631]
[1725889802882,21.82534319,129.26,129.17,0.8503631]
[1725889802883,50.0,129.19,129.17,0.8503631]
[1725889803066,50.0,129.16,129.12,21.5023]
[1725889803399,45.0,129.15,129.12,15.2687]
[1725889804191,45.0,129.15,129.09,21.952]
[1725889804438,50.0,129.2,129.1,0.83181707]
[1725889804700,50.0,129.18,129.09,41.952]
[1725889805000,50.0,129.18,129.1,20.0]
[1725889805165,45.0,129.17,129.1,20.0]
[1725889805349,45.0,129.17,129.1,21.54894905]
[1725889805552,45.0,129.17,129.11,1.54882922]
[1725889805771,45.0,129.17,129.1,20.0]
[1725889806169,50.0,129.16,129.09,21.952]
[1725889806380,45.0,129.15,129.09,21.952]
[1725889808282,50.0,129.14,129.09,21.952]
[1725889808470,45.0,129.13,129.09,21.952]
[1725889808864,45.0,129.13,129.09,15.29]
[1725889809368,50.0,129.12,129.06,6.3673]
[1725889809580,45.0,129.11,129.06,6.3673]
[1725889809953,50.0,129.15,129.06,6.3673]
[1725889810264,45.0,129.14,129.06,6.3673]
[1725889811690,50.0,129.15,129.06,6.3673]
[1725889811898,50.0,129.15,129.07,20.0]
[1725889812386,50.0,129.15,129.08,1.47976629]
[1725889812702,53.1,129.18,129.07,20.0]
[1725889812992,50.0,129.18,129.09,15.8066]
[1725889813181,50.0,129.18,129.1,20.0]
[1725889814187,50.0,129.16,129.1,20.0]
[1725889814561,45.0,129.15,129.1,20.0]
[1725889815182,50.0,129.18,129.1,20.0]
[1725889815396,20.31571818,129.19,129.1,20.0]
[1725889815598,20.31571818,129.19,129.12,16.2237]
[1725889815794,50.0,129.2,129.13,21.11006537]
[1725889815991,72.053,129.24,129.13,20.0]
[1725889816194,72.053,129.24,129.14,1.11121417]
[1725889816195,50.0,129.24,129.14,1.11121417]
[1725889816492,50.0,129.24,129.15,1.11286143]
[1725889816855,50.0,129.22,129.13,20.0]
[1725889817310,50.0,129.25,129.14,44.77912461]
[1725889817505,50.0,129.25,129.17,15.5778]
[1725889818569,50.0,129.27,129.18,20.0]
[1725889819318,50.0,129.27,129.19,1.44735881]
[1725889819596,50.0,129.27,129.18,20.0]
[1725889819785,50.0,129.25,129.17,15.5778]
[1725889820160,45.0,129.24,129.17,15.5778]
[1725889822011,45.0,129.24,129.18,1.09730384]
[1725889822367,45.0,129.24,129.17,15.5778]
[1725889822586,50.0,129.27,129.17,15.5778]
[1725889823189,50.0,129.27,129.18,20.0]
[1725889823999,45.0,129.26,129.18,20.0]
[1725889824311,50.0,129.29,129.19,0.86586747]
[1725889824506,50.0,129.27,129.18,20.0]
[1725889825687,45.0,129.26,129.18,21.54790604]
[1725889825905,50.0,129.29,129.18,21.54790604]
[1725889826080,50.0,129.29,129.18,63.23177271]
[1725889826288,50.0,129.31,129.2,6.2811]
[1725889826513,50.0,129.31,129.21,20.0]
[1725889826902,50.0,129.29,129.21,20.0]
[1725889827119,57.7334,129.31,129.21,20.0]
[1725889827326,70.36384871,129.33,129.21,20.0]
[1725889827516,70.36384871,129.33,129.24,43.23177271]
[1725889827517,50.0,129.32,129.24,43.23177271]
[1725889827716,50.0,129.32,129.25,1.5471199]
[1725889827921,57.7311,129.35,129.25,1.5471199]
[1725889828206,50.0,129.33,129.25,21.5471199]
[1725889828415,50.0,129.34,129.25,21.5471199]
[1725889828806,57.7304,129.36,129.25,21.5471199]
[1725889828995,57.7304,129.36,129.26,15.0573]
[1725889829790,50.0,129.34,129.26,15.0573]
[1725889830431,45.0,129.33,129.26,15.0573]
[1725889832480,50.0,129.32,129.26,15.0573]
[1725889832686,45.0,129.31,129.26,15.0573]
[1725889834641,50.0,129.35,129.26,15.0573]
[1725889834929,50.0,129.38,129.28,43.23177271]
[1725889835143,50.0,129.38,129.3,15.3229]
[1725889835437,50.0,129.38,129.3,16.86876496]
[1725889837290,50.0,129.38,129.3,15.3229]
[1725889838593,45.0,129.37,129.3,15.3229]
[1725889838797,45.0,129.37,129.3,16.86933341]
[1725889839028,45.0,129.37,129.3,15.3229]
[1725889839329,45.0,129.37,129.3,16.86933496]
[1725889839494,45.0,129.37,129.3,15.3229]
[1725889839899,50.0,129.36,129.3,15.3229]
[1725889840126,45.0,129.35,129.3,15.3229]
[1725889840789,50.0,129.33,129.3,15.3229]
[1725889841024,45.0,129.32,129.27,22.1015]
[1725889841489,50.0,129.29,129.27,15.5543]
[1725889841690,50.0,129.31,129.24,6.3936]
[1725889841886,45.0,129.3,129.24,6.3936]
[1725889842233,45.0,129.3,129.24,7.7182104]
[1725889842433,45.0,129.3,129.24,7.77437995]
[1725889842635,50.0,129.33,129.24,6.3936]
[1725889842800,45.0,129.32,129.24,7.94067448]
[1725889843135,45.0,129.32,129.25,20.0]
[1725889843332,7.7317,129.34,129.26,1.54696113]
[1725889843333,95.0,129.33,129.26,1.54696113]
[1725889843521,95.0,129.33,129.25,20.0]
[1725889843522,45.0,129.33,129.27,1.54691021]
[1725889843824,52.7317,129.34,129.25,20.0]
[1725889844501,45.0,129.34,129.25,20.0]
[1725889844713,50.0,129.37,129.27,16.0638]
[1725889844900,57.7298,129.37,129.27,16.0638]
[1725889845402,57.7286,129.39,129.28,7.62771873]
[1725889845604,57.7286,129.39,129.29,20.0]
[1725889846349,50.0,129.36,129.29,20.0]
[1725889846698,45.0,129.35,129.29,20.0]
[1725889846916,45.0,129.35,129.29,21.54662242]
[1725889847209,57.7293,129.38,129.29,20.0]
[1725889847417,45.0,129.37,129.3,1.54575228]
[1725889847724,26.4584734,129.43,129.3,1.54575228]
[1725889847725,57.7268,129.42,129.32,16.3788]
[1725889847932,57.7268,129.42,129.34,6.6531]
[1725889847933,50.0,129.42,129.34,6.6531]
[1725889848130,57.7269,129.42,129.35,1.54581671]
[1725889848351,20.2189734,129.43,129.34,6.6531]
[1725889848858,50.0,129.44,129.35,1.54584655]
[1725889849022,50.0,129.44,129.35,20.0]
[1725889849215,50.0,129.42,129.35,20.0]
[1725889849415,50.0,129.45,129.35,20.0]
[1725889849637,50.0,129.45,129.36,1.54568811]
[1725889849930,57.7249,129.45,129.35,20.0]
[1725889850733,57.7262,129.43,129.35,20.0]
[1725889851237,50.0,129.43,129.35,20.0]
[1725889851736,20.0,129.44,129.35,20.0]
[1725889851940,20.0,129.44,129.34,6.6531]
[1725889852257,45.0,129.43,129.35,20.0]
[1725889852543,95.0,129.43,129.35,20.0]
[1725889854429,102.7265,129.43,129.35,20.0]
[1725889854942,45.0,129.43,129.36,0.80941389]
[1725889855335,50.0,129.45,129.37,16.041]
[1725889855555,50.0,129.47,129.37,16.041]
[1725889855896,295.50735833,129.5,129.4,43.23177271]
[1725889855897,259.7503631,129.5,129.4,43.23177271]
[1725889856080,259.7503631,129.5,129.41,21.54491918]
[1725889856258,0.8503631,129.5,129.41,21.54491918]
[1725889856585,0.8503631,129.5,129.43,6.3708]
[1725889856959,0.8503631,129.5,129.44,1.54476897]